[Event "XXII Obert Internacional d'Escacs Sant Marti 2022"]
[Site "Barcelona, Spain"]
[Date "2022.07.21"]
[Round "9.10"]
[White "Dahale, Atul"]
[Black "Travesset Sagre, Jan"]
[Result "1-0"]
[TimeControl "1.30 fb 30"]
[WhiteElo "2162"]
[BlackElo "2286"]

1. d4 {[%clk 01:26:41]} {[%emt 00:00:18]} d5 {[%clk 01:30:39]} {[%emt
00:00:22]} 2. c4 {[%clk 01:25:05]} {[%emt 00:02:06]} c6 {[%clk 01:30:59]}
{[%emt 00:00:10]} 3. Nc3 {[%clk 01:25:16]} {[%emt 00:00:18]} Nf6 {[%clk
01:31:20]} {[%emt 00:00:10]} 4. Nf3 {[%clk 01:25:18]} {[%emt 00:00:28]} a6
{[%emt 00:00:37]} 5. c5 {[%clk 01:24:47]} {[%emt 00:00:58]} Nbd7 {[%clk
01:31:26]} {[%emt 00:00:20]} 6. Bf4 {[%clk 01:25:04]} {[%emt 00:00:13]} Nh5
{[%clk 01:31:44]} {[%emt 00:00:11]} 7. e3 {[%clk 01:24:47]} {[%emt 00:00:47]}
g6 {[%clk 01:21:22]} {[%emt 00:10:53]} 8. h3 {[%clk 01:19:23]} {[%emt
00:05:54]} Nxf4 {[%clk 01:15:19]} {[%emt 00:06:33]} 9. exf4 {[%clk 01:19:46]}
{[%emt 00:00:06]} Bh6 {[%clk 00:59:15]} {[%emt 00:16:34]} 10. g3 {[%clk
01:19:38]} {[%emt 00:00:38]} O-O {[%clk 00:58:56]} {[%emt 00:00:50]} 11. h4
{[%clk 01:13:28]} {[%emt 00:06:40]} b6 {[%clk 00:56:21]} {[%emt 00:03:05]} 12.
b4 {[%clk 01:10:15]} {[%emt 00:03:43]} bxc5 {[%clk 00:52:22]} {[%emt 00:04:29]}
13. bxc5 {[%clk 01:10:33]} {[%emt 00:00:12]} Qa5 {[%clk 00:47:47]} {[%emt
00:05:05]} 14. Qd2 {[%clk 01:10:05]} {[%emt 00:00:58]} e5 {[%clk 00:35:03]}
{[%emt 00:13:14]} 15. dxe5 {[%clk 01:01:06]} {[%emt 00:09:28]} Re8 {[%clk
00:34:00]} {[%emt 00:01:32]} 16. Ne2 {[%clk 00:25:15]} {[%emt 00:36:22]} Qxd2+
{[%clk 00:16:48]} {[%emt 00:17:44]} 17. Nxd2 {[%clk 00:24:46]} {[%emt
00:00:58]} Rb8 {[%clk 00:09:35]} {[%emt 00:07:43]} 18. Nb3 {[%clk 00:24:41]}
{[%emt 00:00:35]} f6 {[%clk 00:08:14]} {[%emt 00:01:51]} 19. h5 {[%clk
00:23:32]} {[%emt 00:01:39]} Bg7 {[%clk 00:08:20]} {[%emt 00:00:24]} 20. hxg6
{[%clk 00:19:54]} {[%emt 00:04:08]} hxg6 {[%clk 00:07:12]} {[%emt 00:01:39]} 21.
e6 {[%clk 00:18:45]} {[%emt 00:01:39]} Rxe6 {[%clk 00:06:40]} {[%emt 00:01:02]}
22. O-O-O {[%clk 00:19:08]} {[%emt 00:00:07]} Rxb3 {[%clk 00:00:52]} {[%emt
00:06:18]} 23. axb3 {[%clk 00:19:35]} {[%emt 00:00:02]} Nxc5 {[%clk 00:01:06]}
{[%emt 00:00:15]} 24. Nd4 {[%clk 00:18:14]} {[%emt 00:01:51]} Rd6 {[%clk
00:00:33]} {[%emt 00:01:04]} 25. f5 {[%clk 00:15:04]} {[%emt 00:03:40]} Ne4
{[%clk 00:01:02]} 26. Rh2 {[%clk 00:13:48]} {[%emt 00:01:46]} c5 {[%clk
00:00:40]} {[%emt 00:00:52]} 27. Ne6 {[%clk 00:14:17]} {[%emt 00:00:01]} gxf5
{[%clk 00:00:34]} {[%emt 00:00:36]} 28. Nf4 {[%clk 00:11:41]} {[%emt 00:03:06]}
Nc3 {[%clk 00:00:33]} {[%emt 00:00:31]} 29. Rd2 {[%clk 00:11:22]} {[%emt
00:00:49]} Bb7 {[%clk 00:00:38]} {[%emt 00:00:24]} 30. Kc2 {[%clk 00:10:58]}
{[%emt 00:00:53]} Ne4 {[%clk 00:01:02]} {[%emt 00:00:06]} 31. Rd1 {[%clk
00:11:15]} {[%emt 00:00:13]} Kf8 {[%clk 00:01:02]} {[%emt 00:00:31]} 32. Bd3
{[%clk 00:11:09]} {[%emt 00:00:36]} Kg8 {[%clk 00:00:33]} {[%emt 00:00:59]} 33.
f3 {[%clk 00:09:45]} {[%emt 00:01:53]} Ng5 {[%clk 00:00:47]} {[%emt 00:00:17]}
34. Rf2 {[%clk 00:08:38]} {[%emt 00:01:36]} d4 {[%clk 00:00:31]} {[%emt
00:00:46]} 35. Bc4+ {[%clk 00:07:53]} {[%emt 00:01:16]} Kf8 {[%clk 00:00:59]}
{[%emt 00:00:03]} 36. Re1 {[%clk 00:06:08]} {[%emt 00:02:14]} d3+ {[%clk
00:01:22]} {[%emt 00:00:07]} 37. Kc3 {[%clk 00:05:50]} {[%emt 00:00:48]} Bh6
{[%clk 00:01:51]} 38. Ng6+ {[%clk 00:03:47]} {[%emt 00:02:32]} Kg7 {[%clk
00:02:20]} 39. Nh4 {[%clk 00:04:05]} {[%emt 00:00:13]} Rd7 {[%clk 00:00:56]}
{[%emt 00:01:55]} 40. Nxf5+ {[%clk 00:03:36]} {[%emt 00:00:59]} Kg6 {[%clk
00:00:57]} {[%emt 00:00:28]} 41. Nh4+ {[%clk 00:03:54]} {[%emt 00:00:12]} Kg7
{[%clk 00:00:33]} {[%emt 00:00:55]} 42. Bxd3 {[%clk 00:04:11]} {[%emt
00:00:13]} Kf7 {[%clk 00:00:32]} {[%emt 00:00:31]} 43. Bc4+ {[%clk 00:04:23]}
{[%emt 00:00:17]} Kf8 {[%clk 00:00:32]} {[%emt 00:00:30]} 44. Ng6+ {[%clk
00:02:48]} {[%emt 00:02:05]} Kg7 {[%clk 00:01:01]} 45. Re7+ {[%clk 00:02:52]}
{[%emt 00:00:27]} Rxe7 {[%clk 00:01:30]} {[%emt 00:00:01]} 46. Nxe7 {[%clk
00:03:15]} {[%emt 00:00:06]} Bxf3 {[%clk 00:01:17]} {[%emt 00:00:44]} 47. Nf5+
{[%clk 00:02:50]} {[%emt 00:00:55]} Kf8 {[%clk 00:00:32]} {[%emt 00:01:15]} 48.
Rxf3 {[%clk 00:02:35]} {[%emt 00:00:45]} Nxf3 {[%clk 00:00:37]} {[%emt
00:00:25]} 49. Nxh6 {[%clk 00:03:00]} {[%emt 00:00:05]} a5 {[%clk 00:00:46]}
{[%emt 00:00:20]} 50. Nf5 {[%clk 00:03:20]} {[%emt 00:00:11]} Ne5 {[%clk
00:00:34]} {[%emt 00:00:42]} 51. Nd6 {[%clk 00:03:08]} {[%emt 00:00:41]} Ke7
{[%clk 00:00:37]} {[%emt 00:00:28]} 52. Nb7 {[%clk 00:03:24]} {[%emt 00:00:14]}
f5 {[%clk 00:00:45]} {[%emt 00:00:22]} 53. Nxc5 {[%clk 00:03:35]} {[%emt
00:00:19]} Nc6 {[%clk 00:00:32]} {[%emt 00:00:42]} 54. Nb7 {[%clk 00:03:50]}
{[%emt 00:00:15]} Kf6 {[%clk 00:00:32]} {[%emt 00:00:30]} 55. Bb5 {[%clk
00:04:07]} {[%emt 00:00:13]} Na7 {[%clk 00:00:31]} {[%emt 00:00:32]} 56. Bd7
{[%clk 00:04:22]} {[%emt 00:00:14]} Ke7 {[%clk 00:00:33]} {[%emt 00:00:29]} 57.
Bxf5 {[%clk 00:04:44]} {[%emt 00:00:08]} Kf6 {[%clk 00:00:32]} {[%emt
00:00:31]} 58. Bd7 {[%clk 00:04:58]} {[%emt 00:00:16]} Ke7 {[%clk 00:00:56]}
{[%emt 00:00:05]} 59. Ba4 {[%clk 00:05:22]} {[%emt 00:00:06]} Nc8 {[%clk
00:01:06]} {[%emt 00:00:21]} 60. Nxa5 {[%clk 00:05:44]} {[%emt 00:00:08]} Nd6
{[%clk 00:01:16]} {[%emt 00:00:19]} 61. Bc6 {[%clk 00:05:46]} {[%emt 00:00:28]}
Nf5 {[%clk 00:00:32]} {[%emt 00:01:15]} 62. g4 {[%clk 00:05:08]} {[%emt
00:01:07]} Ne3 {[%clk 00:00:31]} {[%emt 00:00:31]} 63. Bf3 {[%clk 00:05:27]}
{[%emt 00:00:11]} Kf6 {[%clk 00:00:33]} {[%emt 00:00:28]} 64. Kd3 {[%clk
00:05:44]} {[%emt 00:00:13]} Nf1 {[%clk 00:00:49]} {[%emt 00:00:13]} 65. b4
{[%clk 00:05:53]} {[%emt 00:00:22]} Ke5 {[%clk 00:00:59]} {[%emt 00:00:20]} 66.
b5 {[%clk 00:06:08]} {[%emt 00:00:14]} Kd6 {[%clk 00:01:20]} {[%emt 00:00:10]}
67. b6 {[%clk 00:06:24]} {[%emt 00:00:14]} Nh2 {[%clk 00:01:35]} {[%emt
00:00:15]} 68. Be2 {[%clk 00:06:47]} {[%emt 00:00:06]} Kd7 {[%clk 00:00:53]}
{[%emt 00:01:12]} 69. g5 {[%clk 00:07:11]} {[%emt 00:00:06]} 1-0